Cogmind - Beta 11 @@@ ROGUE MODE // 2022.03.24 @ 13:57:40 Player: Happytimes Result: Self-destructed Performance ------------- Evolutions (2) 1000 Regions Visited (7) 1400 Robots Destroyed (23) 115 Value Destroyed (679) 679 Prototype IDs (0) 0 Alien Tech Used (0) 0 Bonus (200) 200 TOTAL SCORE: 3394 Bonus ------- Entered Garrisons 200 Cogmind --------- Core Integrity 361/550 Matter 276/300 Energy 45/125 System Corruption 7% Temperature Cool (0) Movement Walking (120) Location -8/Garrison Parts ------- > --- POWER (2) -------- Light Ion Engine > --- PROPULSION (4) --- Aluminum Leg > --- UTILITY (3) ------ Small Storage Unit Machine Analyzer > --- WEAPON (2) ------- (None) > --- INVENTORY (8) ---- Flight Unit Small Laser Grenade Launcher Peak State ------------ > --- POWER ------------ Light Ion Engine > --- PROPULSION ------- Aluminum Leg Aluminum Leg Flight Unit Flight Unit > --- UTILITY ---------- Small Storage Unit Machine Analyzer > --- WEAPON ----------- Shock Bomb Launcher Datajack > --- INVENTORY -------- Small Laser Grenade Launcher [Rating: 13] Favorites ----------- Power Light Ion Engine Engine Light Ion Engine Propulsion Flight Unit Leg Aluminum Leg Flight Unit Flight Unit Utility Small Storage Unit Storage Small Storage Unit Processor Machine Analyzer Weapon Assault Rifle Energy Gun EM Pulse Gun Ballistic Gun Assault Rifle Launcher Shock Bomb Launcher Special Melee Weapon Datajack Build | -11 -10 -10 -10 -9 -8 -8 -8 ------- Run | Scr Mat Min Exi Min Mat Sto Gar Slots Evolved 4 | . . . . . 4 . . Power 1 | . . . . . 1 . . Propulsion 2 | . . . . . 2 . . Utility 1 | . . . . . 1 . . Weapon . | . . . . . . . . Parts Attached 28 | 6 1 7 . 5 5 3 1 Power 7 | 1 1 1 . 3 . . 1 Engine 7 | 1 1 1 . 3 . . 1 Core . | . . . . . . . . Reactor . | . . . . . . . . Propulsion 11 | 2 . 4 . 2 1 2 . Treads . | . . . . . . . . Leg 5 | 2 . 1 . . . 2 . Wheel . | . . . . . . . . Hover . | . . . . . . . . Flight 6 | . . 3 . 2 1 . . Utility 3 | 1 . . . . 2 . . Device . | . . . . . . . . Storage 2 | 1 . . . . 1 . . Processor 1 | . . . . . 1 . . Hackware . | . . . . . . . . Protection . | . . . . . . . . Artifact . | . . . . . . . . Weapon 7 | 2 . 2 . . 2 1 . Energy Gun 3 | 2 . . . . 1 . . Energy Cannon . | . . . . . . . . Ballistic Gun 1 | . . 1 . . . . . Ballistic Cannon . | . . . . . . . . Launcher 2 | . . 1 . . . 1 . Special Weapon . | . . . . . . . . Impact Weapon . | . . . . . . . . Slashing Weapon . | . . . . . . . . Piercing Weapon . | . . . . . . . . Special Melee Weapon 1 | . . . . . 1 . . Unidentified Prototypes . | . . . . . . . . Corrupted Parts 1 | . . . . . . . 1 System Corruption 5 | . . . . . . . 5 Parts Lost 9 | . 1 . . . 2 1 5 Power 1 | . . . . . . 1 . Propulsion 4 | . . . . . 1 . 3 Utility . | . . . . . . . . Weapon 4 | . 1 . . . 1 . 2 Highest Loss Streak 5 | . 1 . . . 2 1 5 To Critical Strikes . | . . . . . . . . Average Slot Usage (%) 73 | . 81 79 71 71 60 79 63 Engine 12 | . 14 14 14 14 9 7 2 Leg 9 | . 28 18 . . . 18 18 Flight 18 | . . 9 28 28 23 18 11 Storage 13 | . 14 14 14 14 9 9 9 Energy Gun 5 | . 24 8 . . 4 7 . Ballistic Gun 9 | . . 12 14 14 4 . . Special Melee Weapon 1 | . . . . . 9 9 4 Naked Turns . | . . . . . . . . Heaviest Build 15 | 12 12 15 10 10 11 15 14 Greatest Support 20 | 20 20 20 8 8 12 20 20 Greatest Overweight (x) 1 | 1 . 1 1 1 1 1 . Average Overweight (x) . | . . . 1 1 . . . Largest Inventory Capacity 8 | 8 8 8 8 8 8 8 8 Average Capacity 7 | 6 8 8 8 8 8 8 8 Most Carried 8 | 5 8 8 7 8 6 4 4 Average Carried 6 | 3 4 7 7 7 4 2 2 Final Capacity 8 | 8 8 8 8 8 8 8 8 Final Carried 8 | 2 8 7 7 6 4 2 3 Class Distribution -------------------- 84% | Mutant 15% | Scavenger-Mutant Dominant Class ---------------- Mutant | -10/Materials Mutant | -10/Mines Mutant | -10/Exiles Mutant | -9/Mines Scavenger-Mutant | -8/Materials Scavenger-Mutant | -8/Storage Scavenger-Mutant | -8/Garrison Resources | -11 -10 -10 -10 -9 -8 -8 -8 ----------- Run | Scr Mat Min Exi Min Mat Sto Gar Matter Collected 567 | 143 122 120 . 59 93 . 30 Remotely . | . . . . . . . . Salvage Created 688 | . 247 176 . 41 150 . 74 Parts 44 | . 12 12 . 4 7 . 9 Haulers Intercepted . | . . . . . . . . Recyclers Shooed 1 | . . . . . 1 . . Parts Field Recycled . | . . . . . . . . Retrieved Matter . | . . . . . . . . Parts Self-Destructed . | . . . . . . . . Prevented . | . . . . . . . . Kills | -11 -10 -10 -10 -9 -8 -8 -8 ------- Run | Scr Mat Min Exi Min Mat Sto Gar Combat Hostiles Destroyed 21 | . 5 6 . 3 3 . 4 Guns 14 | . 5 3 . 3 3 . . AOE 7 | . . 3 . . . . 4 Classes Destroyed 3 | . 1 2 . . . . . Recycler 2 | . . 2 . . . . . Swarmer 13 | . . 6 . 3 . . 4 Grunt 8 | . 5 . . . 3 . . Best Kill Streak 4 | . 3 3 . 2 2 . 4 Combat Bots Only 4 | . 3 3 . 2 2 . 4 Max Kills in Single Turn 4 | . 1 2 . 1 1 . 4 Gunslinging . | . . . . . . . . Exploded 4 | . . 2 . . . . 4 Melee . | . . . . . . . . Uniques/NPCs Destroyed . | . . . . . . . . Combat | -11 -10 -10 -10 -9 -8 -8 -8 -------- Run | Scr Mat Min Exi Min Mat Sto Gar Damage Taken 1055 | . 202 90 . 155 229 131 248 Core 297 | . 55 14 . 39 118 18 53 Absorbed by Shields . | . . . . . . . . Core Remaining (%) 78 | 100 . . . 56 . . . Volleys Fired 62 | . 14 12 . 10 21 1 4 Largest 2 | . 2 2 . 1 1 1 1 Hottest 80 | . 80 70 . 20 40 36 36 Shots Fired 85 | . 26 23 . 10 21 1 4 Gun 78 | . 26 21 . 10 21 . . Cannon . | . . . . . . . . Launcher 7 | . . 2 . . . 1 4 Special . | . . . . . . . . Kinetic 35 | . . 10 . 10 15 . . Thermal 6 | . . . . . 6 . . Explosive 2 | . . 2 . . . . . Electromagnetic 42 | . 26 11 . . . 1 4 Robot Hit Streak 13 | . 11 6 . 13 9 . 3 Robot Miss Streak 3 | . 2 3 . . 2 . 1 Penetration Max . | . . . . . . . . Secondary Targets . | . . . . . . . . Shots Hit Robots 62 | . 19 13 . 10 17 . 3 Core Hits 39 | . 10 10 . 3 10 1 5 Critical Kills 1 | . . . . . 1 . . Critical Parts Destroyed . | . . . . . . . . Critical Strikes 1 | . . . . . 1 . . Destroy 1 | . . . . . 1 . . Melee Attacks 2 | . . . . . 2 . . Impact . | . . . . . . . . Slashing . | . . . . . . . . Piercing . | . . . . . . . . Sneak Attacks . | . . . . . . . . Combat Hostiles . | . . . . . . . . Follow-up Attacks . | . . . . . . . . Damage Inflicted 1226 | . 265 384 . 118 203 4 252 Guns 748 | . 265 165 . 115 203 . . Cannons . | . . . . . . . . Explosions 475 | . . 219 . . . 4 252 Melee . | . . . . . . . . Ramming 3 | . . . . 3 . . . Kinetic 355 | . . 91 . 115 149 . . Thermal 139 | . . 32 . . 54 . 53 Explosive 187 | . . 187 . . . . . Electromagnetic 542 | . 265 74 . . . 4 199 Impact . | . . . . . . . . Slashing . | . . . . . . . . Piercing . | . . . . . . . . Highest Corruption 7 | . . . . . 1 1 7 Average Corruption 1 | . . . . . 1 1 2 Corruption Purged . | . . . . . . . . Corruption Blocked . | . . . . . . . . Effects 2 | . . . . . . . 2 Message Errors 1 | . . . . . . . 1 Matter Fused 1 | . . . . . . . 1 Overload Shots . | . . . . . . . . Overflow Damage 23 | . . 4 . . . . 19 Projectiles . | . . . . . . . . Explosions 23 | . . 4 . . . . 19 Melee . | . . . . . . . . Knockbacks . | . . . . . . . . Impact . | . . . . . . . . Kinetic . | . . . . . . . . Secondary . | . . . . . . . . Self-Inflicted Damage 80 | . . . . 1 . . 79 Shots 4 | . . . . . . . 4 Rammed 1 | . . . . 1 . . . Targets Rammed 1 | . . . . 1 . . . Kicked . | . . . . . . . . Crushed . | . . . . . . . . Highest Temperature 216 | . 216 9 . . 14 23 1 Average Temperature 77 | . 93 5 . . 5 17 1 Received Heat Transfer 414 | . 117 . . . 153 99 45 Siege Activations . | . . . . . . . . Robots Corrupted . | . . . . . . . . Combat Hostiles . | . . . . . . . . Parts Fried 1 | . . . . . . . 1 Impact Corruptions . | . . . . . . . . Robots Melted . | . . . . . . . . Combat Hostiles . | . . . . . . . . Parts Melted . | . . . . . . . . Heat Transferred 225 | . . 50 . . 125 . 50 Parts Sabotaged . | . . . . . . . . Parts Stolen . | . . . . . . . . Parts Stripped . | . . . . . . . . Power Chain Reactions 2 | . . 1 . . . . 1 Missiles Intercepted . | . . . . . . . . Alert | -11 -10 -10 -10 -9 -8 -8 -8 ------- Run | Scr Mat Min Exi Min Mat Sto Gar Peak Influence 313 | . 167 313 . 75 117 78 156 Initial 64 | . . 64 . . 29 49 44 Average 115 | . 66 254 . 41 81 56 76 Maximum Alert Level 1 | . . 1 . . . . . Low Security (%) 81 | 100 100 38 . 100 100 100 100 Level 1 18 | . . 61 . . . . . Level 2 . | . . . . . . . . Level 3 . | . . . . . . . . Level 4 . | . . . . . . . . Level 5 . | . . . . . . . . High Security . | . . . . . . . . Max Security . | . . . . . . . . Squads Dispatched 3 | . 1 . . . 1 1 . Investigation 2 | . 1 . . . 1 . . Extermination . | . . . . . . . . Reinforcement . | . . . . . . . . Assault . | . . . . . . . . Garrison 1 | . . . . . . 1 . Intercept . | . . . . . . . . Searches Triggered . | . . . . . . . . Construction Impeded . | . . . . . . . . Haulers Reinforced . | . . . . . . . . Active Scanning Responses . | . . . . . . . . Cargo Convoy Interrupts . | . . . . . . . . Stealth | -11 -10 -10 -10 -9 -8 -8 -8 --------- Run | Scr Mat Min Exi Min Mat Sto Gar Distress Signals 3 | . . . . 1 1 1 . Communications Jammed . | . . . . . . . . Distress Signals . | . . . . . . . . Times Spotted 37 | . 6 7 . 10 5 4 5 Peak Tracking Total 9 | . 3 3 . 9 3 5 5 Tactical Retreats 2 | . . 1 . 1 . . . Traps | -11 -10 -10 -10 -9 -8 -8 -8 ------- Run | Scr Mat Min Exi Min Mat Sto Gar Traps Triggered . | . . . . . . . . Indirectly . | . . . . . . . . Trap Hack Attempts . | . . . . . . . . Triggered . | . . . . . . . . Disarmed . | . . . . . . . . Reprogrammed . | . . . . . . . . Reused . | . . . . . . . . Traps Extracted . | . . . . . . . . Installed . | . . . . . . . . Triggered . | . . . . . . . . Machines | -11 -10 -10 -10 -9 -8 -8 -8 ---------- Run | Scr Mat Min Exi Min Mat Sto Gar Machines Disabled 1 | . . . . . . . 1 Max in Single Turn 1 | . . . . . . . 1 Garrison Relay 1 | . . . . . . . 1 Machines Sabotaged . | . . . . . . . . Garrisons Compromised . | . . . . . . . . Overloaded Fab Kills . | . . . . . . . . Hacking | -11 -10 -10 -10 -9 -8 -8 -8 --------- Run | Scr Mat Min Exi Min Mat Sto Gar Machines Accessed 8 | . 3 . . . 2 3 . Terminals 7 | . 3 . . . 2 2 . Fabricators . | . . . . . . . . Repair Stations . | . . . . . . . . Recycling Units . | . . . . . . . . Scanalyzers . | . . . . . . . . Garrison Access 1 | . . . . . . 1 . Total Hacks 23 | . 10 . . . 5 8 . Successful 12 | . 4 . . . 3 5 . Failed 11 | . 6 . . . 2 3 . Catastrophic . | . . . . . . . . Database Lockouts . | . . . . . . . . Manual . | . . . . . . . . Terminals 21 | . 10 . . . 5 6 . Fabricators . | . . . . . . . . Repair Stations . | . . . . . . . . Recycling Units . | . . . . . . . . Scanalyzers . | . . . . . . . . Garrison Access 2 | . . . . . . 2 . Terminal Hacks 11 | . 4 . . . 3 4 . Branch Access Points 1 | . 1 . . . . . . Terminal Index 1 | . 1 . . . . . . Locate Traps 2 | . . . . . 1 1 . Dispatch Records 1 | . . . . . 1 . . Transport Status 1 | . . . . . . 1 . Hauler Manifests 2 | . 1 . . . . 1 . Zone Layout 3 | . 1 . . . 1 1 . Fabricator Hacks . | . . . . . . . . Repair Station Hacks . | . . . . . . . . Recycling Unit Hacks . | . . . . . . . . Scanalyzer . | . . . . . . . . Garrison Access Hacks 1 | . . . . . . 1 . Unlock Access 1 | . . . . . . 1 . Unauthorized Hacks . | . . . . . . . . Terminals . | . . . . . . . . Fabricators . | . . . . . . . . Repair Stations . | . . . . . . . . Recycling Units . | . . . . . . . . Scanalyzers . | . . . . . . . . Garrison Access . | . . . . . . . . Data Cores Recovered . | . . . . . . . . Used . | . . . . . . . . Hacking Detections 5 | . 1 . . . 2 2 . Full Trace Events 2 | . 1 . . . 1 . . Feedback Events 1 | . . . . . 1 . . Corruption 1 | . . . . . 1 . . Feedback Blocked . | . . . . . . . . Robot Schematics Acquired . | . . . . . . . . Robots Built . | . . . . . . . . Authchips . | . . . . . . . . Time . | . . . . . . . . Total Robot Build Rating . | . . . . . . . . Part Schematics Acquired . | . . . . . . . . Parts Built . | . . . . . . . . Authchips . | . . . . . . . . Time . | . . . . . . . . Total Part Build Rating . | . . . . . . . . Parts Repaired . | . . . . . . . . Time . | . . . . . . . . Parts Recycled . | . . . . . . . . Recycled Matter . | . . . . . . . . Retrieved Matter . | . . . . . . . . Retrieved Components . | . . . . . . . . Parts Scanalyzed . | . . . . . . . . Part Schematics Acquired . | . . . . . . . . Parts Damaged . | . . . . . . . . Bothacking | -11 -10 -10 -10 -9 -8 -8 -8 ------------ Run | Scr Mat Min Exi Min Mat Sto Gar Used RIF Installer . | . . . . . . . . Robots Hacked . | . . . . . . . . Non-combat . | . . . . . . . . Combat . | . . . . . . . . Robot Hacks Applied . | . . . . . . . . Relay Couplers Released 4 | . . . . . . . 4 Machine Destruction 4 | . . . . . . . 4 Fabnet Peak Effective % . | . . . . . . . . Robots Rewired . | . . . . . . . . Allies Hacked . | . . . . . . . . Hacks Repelled . | . . . . . . . . Allies | -11 -10 -10 -10 -9 -8 -8 -8 -------- Run | Scr Mat Min Exi Min Mat Sto Gar Total Allies . | . . . . . . . . Largest Group . | . . . . . . . . Highest-Rated Group . | . . . . . . . . Highest-Rated Ally . | . . . . . . . . Total Orders . | . . . . . . . . Ally Attacks . | . . . . . . . . Total Damage . | . . . . . . . . Kills . | . . . . . . . . Allies Corrupted . | . . . . . . . . Allies Melted . | . . . . . . . . Intel | -11 -10 -10 -10 -9 -8 -8 -8 ------- Run | Scr Mat Min Exi Min Mat Sto Gar Robot Analysis Total . | . . . . . . . . Derelict Logs Recovered 2 | . . . . 2 . . . Drone Launches . | . . . . . . . . Drone Recoveries . | . . . . . . . . Exploration | -11 -10 -10 -10 -9 -8 -8 -8 ------------- Run | Scr Mat Min Exi Min Mat Sto Gar Turns Passed 1601 | 44 183 385 327 372 139 70 81 Spaces Moved 1139 | 39 108 226 280 267 114 54 51 Core 24 | 24 . . . . . . . Treads . | . . . . . . . . Legs 343 | 15 108 116 . . . 53 51 Wheels . | . . . . . . . . Hover . | . . . . . . . . Flight 772 | . . 110 280 267 114 1 . Fastest Speed 34 | 50 120 117 117 117 34 117 120 Average Speed 111 | 83 120 118 117 117 63 119 120 Slowest Speed 120 | 120 120 120 117 117 117 120 120 Overloaded Moves . | . . . . . . . . Propulsion Burnouts . | . . . . . . . . Robots Hopped . | . . . . . . . . Cave-ins Triggered . | . . . . . . . . Exploration Rate (%) 27 | 3 27 46 56 52 13 11 10 Regions Visited 7 Branch Regions 4 Pre-discovered Areas . | . . . . . . . . Known Exits Taken 3 | . 1 . . . 1 1 . Unknown Exits Taken 4 | 1 . 1 1 1 . . . Scrap Searched 2 | . . 1 . 1 . . . Spaces Dug . | . . . . . . . . Terrain Destroyed 22 | . . 20 . . . . 2 Melee . | . . . . . . . . Projectile . | . . . . . . . . AOE 22 | . . 20 . . . . 2 Terrain Rammed . | . . . . . . . . Walls Destroyed . | . . . . . . . . Machines Disabled . | . . . . . . . . Actions | -11 -10 -10 -10 -9 -8 -8 -8 --------- Run | Scr Mat Min Exi Min Mat Sto Gar Total 1385 | 49 136 320 279 320 158 57 66 Wait 126 | . 7 70 . 28 13 . 8 Move 1132 | 38 107 225 279 266 113 53 51 Hop . | . . . . . . . . Pick Up 19 | 5 6 1 . 2 3 . 2 Fast Attach 6 | 3 . 3 . . . . . Attach 13 | 3 . 2 . . 5 2 1 Detach . | . . . . . . . . Swap 9 | . 1 2 . 5 . 1 . Drop 15 | . 1 5 . 8 1 . . Fire 62 | . 14 12 . 10 21 1 4 Melee 2 | . . . . . 2 . . Ram 1 | . . . . 1 . . . Kick . | . . . . . . . . Crush . | . . . . . . . . Escape Stasis . | . . . . . . . . Rewire . | . . . . . . . . Trap . | . . . . . . . . Miscellaneous . | . . . . . . . . Route ------- -11/Scrapyard -10/Materials (discovered 2 exits: *Min x2) -10/Mines -10/Exiles (discovered 2 exits: [*Min x2]) -9/Mines -8/Materials (discovered 2 exits: Fac / *Sto) -8/Storage -8/Garrison History --------- Turn | Location | Event 21 | -11/Scrapyard | Discovered new exit (range 15) 45 | -11/Scrapyard | Entered Materials 85 | -10/Materials | Identified exit to Mines 228 | -10/Materials | Entered Mines 316 | -10/Mines | Build established: Mutant 517 | -10/Mines | Received a Rocket Launcher from a helpful Derelict 607 | -10/Mines | Deemed a non-threat by the Exiles lab entrance 609 | -10/Mines | Discovered new exit (range 5) 613 | -10/Mines | Entered Exiles 642 | -10/Exiles | Met 8R-AWN 661 | -10/Exiles | Met EX-HEX 698 | -10/Exiles | Met EX-BIN 742 | -10/Exiles | Met EX-DEC 782 | -10/Exiles | Discovered new exit (range 14) 924 | -10/Exiles | Discovered new exit (range 14) 940 | -10/Exiles | Entered Mines 968 | -9/Mines | Assembled infested the area 973 | -9/Mines | Assisted by a Guerilla fighting off Assembled 1234 | -9/Mines | Learned location of 1 exit from Materials 1264 | -9/Mines | Discovered new exit (range 9) 1312 | -9/Mines | Entered Materials 1312 | -8/Materials | Evolved 4 slots: Power x1, Propulsion x2, Utility x1 1313 | -8/Materials | Identified exit to Storage 1314 | -8/Materials | Identified exit to Factory 1451 | -8/Materials | Entered Storage 1475 | -8/Storage | Identified exit to Garrison 1511 | -8/Storage | Garrison activated, responded to threat 1521 | -8/Storage | Entered Garrison 1566 | -8/Garrison | Triggered checkpoint 1598 | -8/Garrison | Garrison Relay disabled 1602 | -8/Garrison | Self-destructed Last Messages --------------- 01566_ Flight Unit destroyed. 01566_ Destroyed Flight Unit. 01566_ S-10 Pest destroyed. 01566_ Chain reaction triggered in Corrupted Lgt. Ion Engine. 01566_ S-10 Pest destroyed. 01570_ Acquired Corrupted Flight Unit. 01572_ Acquired 11 matter. 01579_ Acquired 19 matter. 01582_ Acquired Corrupted Lgt. Ion Engine. 01583_ Integrated Corrupted Lgt. Ion Engine (+5). 01586_ Flight Unit destroyed. 01587_ System corrupted: Matter fused (-9). 01598_ Garrison Relay disabled. 01598_ Relay Coupler [Hunter] tumbles out of relay unit. 01598_ Relay Coupler [Demolisher] tumbles out of relay unit. 01598_ Relay Coupler [NC] tumbles out of relay unit. 01598_ Relay Coupler [Cutter] tumbles out of relay unit. 01600_ Shock Bomb Launcher destroyed. 01600_ Destroyed Shock Bomb Launcher. 01600_ Aluminum Leg destroyed. Map ----- +----------------------------------------------------+ | ????????????????????????????????????????????????? | | ????????????????????????????????????????????????? | | ????????????????????????????????????????????????? | | ????????????????????????????????????????????????? | | ????????????????????????????????????????????????? | | ????????????????????????????????????????????????? | | ????????????????????????????????????????????????? | | ????????????????????????????????????????????????? | | ????????????????????????????????????????????????? | | ????????????????????????????????????????????????? | | ????????????????????????????????????????????????? | | ????????????????????????????????????????????????? | | ????????????????????????????????????????????????? | | ????????????????????????????????????????????????? | | ????????????????????????????????????????????????? | | ????????????????????????????????????????????????? | | ????????????????????????????????????????????????? | | ????????????????????????????????????????????????? | | ????????????????????????????????????????????????? | | ????????????????????????????????????????????????? | | ????????????????????????????????????????????????? | | ???????????????????????##???????????????????????? | | ???????????????????????#"###????????????????????? | | ???????????????????????# #????????????????????? | | ???????????????????????# !!#????????????????????? | | ???????????????????????#!@ #????????????????????? | | ???????????????????????#"#Y#????????????????????? | | ???????????????????????### #????????????????????? | | ?????????????????????????# ###??????????????????? | | ?????????????????????????# [#??????????????????? | | ????????????????????????## =#??????????????????? | | ????????????????????????# %#??????????????????? | | ????????????????????? %###??????????????????? | | ??#?????????????????### ##=[????????????????????? | | ??# ########?????????# ?# #????????????????????? | | ??# #?????????#??# #????????????????????? | | ??# ############## #????????????????????? | | ??######## #????????????????????? | | ?????????# ################????????????????????? | | ?????????# #???????????????????????????????????? | | ?????????# #???????????????????????????????????? | | ?????????# #???????????????????????????????????? | | ?????????# ###?????????????????????????????????? | | ?????????# #?????????????????????????????????? | | ?????????# #?????????????????????????????????? | | ?????????# #?????????????????????????????????? | | ?????????######?????????????????????????????????? | | ????????????????????????????????????????????????? | | ????????????????????????????????????????????????? | | ????????????????????????????????????????????????? | +----------------------------------------------------+ Best States ------------- Heat Dissipation 31 Energy Generation 10 Energy Capacity 250 Matter Stores 300 Matter Capacity 300 Sight Range 16 Terrain Scan Density 10 Evasion (%) 63 Item Schematics ----------------- None Robot Schematics ------------------ None Fabricated ------------ Nothing Alien Tech Used ----------------- None Achievements -------------- None Challenges ------------ None Game ------ Seed VortexBattleVibroblade Manual? 0 Play Time 00:11:38 Cumulative 37.1 hours Start 2022.03.24 @ 13:46:36 End 2022.03.24 @ 13:57:40 Sessions 1 Manual Loads 0 Difficulty Rogue Special Mode None Game No. 111 Rogue 111 Adventurer 0 Explorer 0 Win Type - Total 0 Types 0/0/0/0/0/0/0/0/0 Lore% 31 Gallery% 44 Achievement% 33 Wizard Run 0 Options --------- ASCII 0 Keyboard 0 Movement Mouse Keybinds 0 Fullscreen 1 Font 18/SmallcapsGlow Map View 76x50 Tactical HUD 1 Map Filters NONE Filters NONE Steam 1 RUN: f50dd6cc-1867-480e-b4ab-a5d6cd2eb107